Workbook

Sheet Zeiterfassungsblatt
B1: ZEITERFASSUNG | K1: Zeitaufnahme vom: | L1: =TODAY() -> 2018-09-01
K3: Start Zähler: | L3: 00:34:18
J6: Setzt die Zeit auf 0 | K6: Zeigt den aktuellen Zählerstand seit Zählerstart
C8: 20:04:11 | L8: 00:00:00
B10: Aufnahme Nr. | C10: Projekt-Nr. 1 | D10: Projekt-Nr. 2 | E10: Projekt-Nr. 3 | F10: Projekt-Nr. 4 | G10: Projekt-Nr. 5 | H10: Projekt-Nr. 6 | I10: Projekt-Nr. 7 | J10: Projekt-Nr. 8 | K10: Projekt-Nr. 9 | L10: Projekt-Nr. 10
B11: 1 | C11: 3171 | D11: 55 | G11: 6 | J11: 900
B12: 2 | C12: 62 | D12: 120 | G12: 2 | H12: 3 | J12: 3005
B13: 3 | C13: 6 | D13: 707 | G13: 12 | H13: 3 | I13: 2 | J13: 9
B14: 4 | C14: 7 | G14: 19 | H14: 3 | I14: 1 | J14: 28
B15: 5 | C15: 210 | E15: 3 | G15: 1 | H15: 2 | I15: 1 | J15: 1
B16: 6 | F16: 1361 | G16: 2 | H16: 2 | J16: 1
B17: 7 | C17: 2 | G17: 1 | H17: 2 | J17: 1
B18: 8 | C18: 1 | F18: 193 | G18: 2 | H18: 2 | J18: 3
B19: 9 | D19: 2 | F19: 1 | G19: 1 | H19: 1 | J19: 0 | K19: 3
B20: 10 | D20: 1 | F20: 1 | G20: 1 | H20: 2 | J20: 2
B21: 11 | F21: 1 | G21: 1 | H21: 1 | J21: 131
B22: 12 | F22: 1 | G22: 3 | H22: 1 | J22: 1
B23: 13 | F23: 1 | G23: 7 | H23: 1 | J23: 1
B24: 14 | F24: 1 | G24: 2 | H24: 1 | J24: 24
B25: 15 | F25: 1 | G25: 1 | H25: 1 | J25: 5
B26: 16 | F26: 1 | G26: 1 | H26: 24 | J26: 1
B27: 17 | F27: 1 | G27: 1 | H27: 1 | J27: 1
B28: 18 | G28: 1 | H28: 1 | J28: 3
B29: 19 | H29: 16 | J29: 3
B30: 20 | H30: 3 | N30: Tageswerte
B31: Sekunden | C31: =SUBTOTAL(109,Tabelle1[Projekt-Nr. 1]) -> 3459 | D31: =SUBTOTAL(109,Tabelle1[Projekt-Nr. 2]) -> 885 | E31: =SUBTOTAL(109,Tabelle1[Projekt-Nr. 3]) -> 3 | F31: =SUBTOTAL(109,Tabelle1[Projekt-Nr. 4]) -> 1563 | G31: =SUBTOTAL(109,Tabelle1[Projekt-Nr. 5]) -> 64 | H31: =SUBTOTAL(109,Tabelle1[Projekt-Nr. 6]) -> 70 | I31: =SUBTOTAL(109,Tabelle1[Projekt-Nr. 7]) -> 4 | J31: =SUBTOTAL(109,Tabelle1[Projekt-Nr. 8]) -> 4120 | K31: =SUBTOTAL(109,Tabelle1[Projekt-Nr. 9]) -> 3 | L31: =SUBTOTAL(109,Tabelle1[Projekt-Nr. 10]) -> 0 | N31: =SUM(C31:L31) -> 10171 | O31: Sekunden
B32: Minuten | C32: =Tabelle1[[#Totals],[Projekt-Nr. 1]]/60 -> 57.65 | D32: =Tabelle1[[#Totals],[Projekt-Nr. 2]]/60 -> 14.75 | E32: =Tabelle1[[#Totals],[Projekt-Nr. 3]]/60 -> 0.05 | F32: =Tabelle1[[#Totals],[Projekt-Nr. 4]]/60 -> 26.05 | G32: =Tabelle1[[#Totals],[Projekt-Nr. 5]]/60 -> 1.066666667 | H32: =Tabelle1[[#Totals],[Projekt-Nr. 6]]/60 -> 1.166666667 | I32: =Tabelle1[[#Totals],[Projekt-Nr. 7]]/60 -> 0.06666666667 | J32: =Tabelle1[[#Totals],[Projekt-Nr. 8]]/60 -> 68.66666667 | K32: =Tabelle1[[#Totals],[Projekt-Nr. 9]]/60 -> 0.05 | L32: =Tabelle1[[#Totals],[Projekt-Nr. 10]]/60 -> 0 | N32: =SUM(C32:L32) -> 169.5166667 | O32: Minuten
B33: Stunden | C33: =C32/60 -> 0.9608333333 | D33: =D32/60 -> 0.2458333333 | E33: 0.0008333333333 | F33: 0.4341666667 | G33: 0.01777777778 | H33: 0.01944444444 | I33: 0.001111111111 | J33: 1.144444444 | K33: 0.0008333333333 | L33: 0 | N33: =SUM(C33:L33) -> 2.825277778 | O33: Stunden

Sheet Stammdaten
C5: Tätigkeit / Projekt / Aufgabe
B6: 1 | C6: Projekt-Nr. 1 | D6: < Hier kannst du bis zu 20 Projektnamen, Tätigkeiten oder Aufgaben eingeben.
B7: 2 | C7: Projekt-Nr. 2 | D7: Diese können dann über das Pull-Down-Menü im Zeiterfassungsblatt abgerufen werden.
B8: 3 | C8: Projekt-Nr. 3
B9: 4 | C9: Projekt-Nr. 4
B10: 5 | C10: Projekt-Nr. 5
B11: 6 | C11: Projekt-Nr. 6
B12: 7 | C12: Projekt-Nr. 7
B13: 8 | C13: Projekt-Nr. 8
B14: 9 | C14: Projekt-Nr. 9
B15: 10 | C15: Projekt-Nr. 10
B16: 11
B17: 12
B18: 13
B19: 14
B20: 15
B21: 16
B22: 17
B23: 18
B24: 19
B25: 20

Sheet Info
A1: Zeiterfassung
A2: Version 1.0
A4: Allgemeine Information über diese Vorlage
A5: Eine Vorlage für alle die ihren Zeitaufwand für z.B. Projekte oder sonstige Tätigkeiten und Aufgaben notieren und nachweisen müssen.
A7: Eingabemöglichkeiten
A8: Die Vorlage funktioniert mit Excel-Makro-Programmierung. Es gibt keinen Blattschutz. Änderungen an Zeilen, Spalten und Zellen können gemacht werden, bitte aber jede Änderung testen. Die Makro-Programmierung bezieht sich auf fixe Zellen, weshalb Änderungen dazu führen können, dass das Makro nicht mehr richtig funktioniert und eine Fehlermeldung ausgegeben wird. Bei Fragen können Sie sich gerne per E-Mail an mich wenden:
A9: info@alle-meine-vorlagen.de
A10: Allgemeine Hinweise
A11: Teste die Vorlage und gib mir ein Feedback. Jede Rückmeldung hilft, die Vorlage besser zu machen.
A12: info@alle-meine-vorlagen.de
A15: Hier gibt es weitere kostenlose Excel-Vorlagen:
A16: https://www.alle-meine-vorlagen.de/
A18: ￭ FotoDoku - Erstellen Sie ihre individuellen Foto-Dokumentationen, Bautagebücher, …
A19: ￭ Kostenkontrolle-Haushaltsbuch
A20: ￭ Arbeitszeitnachweis
A21: ￭ Anwesenheitsliste
A22: ￭ Stadt, Land, Fluss
A23: ￭ Bestellformularvorlage für deine Bestellung
A24: ￭ AMV-Jahreskalender 2018
A25: ￭ Telefonnotiz
A26: ￭ Dauerkalender, Jahreskalender, ewiger Kalender
A27: ￭ Familienkalender
A28: ￭ Redaktionsplaner
A29: ￭ Projektplan Excel
A30: ￭ Energie-Verbrauchskosten-Kontrolle
A32: Um nur einige zu nennen...
